fUSD/lending_fUSD_20250930
["ID","MTS","AMOUNT","RATE_DAILY","PERIOD"]
[388596750,1759249842365,-759.47,0.00019178,2]
[388596751,1759249842374,-1202.06,0.00019178,2]
[388596752,1759249842383,-500.0,0.00019178,2]
[388596753,1759249842393,-500.0,0.00019178,2]
[388596754,1759249842402,-500.0,0.00019178,2]
[388596755,1759249842411,-500.0,0.00019178,2]
[388596756,1759249842420,-500.0,0.00019178,2]
[388596757,1759249842430,-500.0,0.00019178,2]
[388596758,1759249842439,-500.0,0.00019178,2]
[388596759,1759249842448,-551.88,0.00019178,2]
[388596760,1759249842458,-500.0,0.00019178,2]
[388596761,1759249842467,-500.0,0.00019178,2]
[388596762,1759249842476,-2500.48,0.00019178,2]
[388596763,1759249842486,-500.0,0.00019178,2]
[388596764,1759249842496,-500.0,0.00019178,2]
[388596765,1759249842505,-978.17,0.00019178,2]
[388596766,1759249842515,-500.0,0.00019178,2]
[388596767,1759249842523,-616.49,0.00019178,2]
[388596768,1759249842532,-500.0,0.00019178,2]
[388596769,1759249842543,-500.0,0.00019178,2]
[388596770,1759249842552,-537.71,0.00019178,2]
[388596771,1759249842561,-500.0,0.00019178,2]
[388596772,1759249842570,-151.0,0.00019178,2]
[388596773,1759249842579,-151.0,0.00019178,2]
[388596774,1759249842588,-397.53435876,0.00019178,2]
[388596775,1759249842597,-2779.18,0.00019178,2]
[388596776,1759249842607,-2779.18,0.00019178,2]
[388596777,1759249842616,-500.0,0.00019178,2]
[388596778,1759249842625,-500.0,0.00019178,2]
[388596779,1759249842634,-500.0,0.00019178,2]
[388596780,1759249842644,-500.0,0.00019178,2]
[388596781,1759249842653,-500.0,0.00019178,2]
[388596782,1759249842662,-849.63,0.00019178,2]
[388596784,1759249842671,-814.23,0.00019178,2]
[388596785,1759249842681,-355.14252573,0.00019178,2]
[388596787,1759249842691,-500.0,0.00019178,2]
[388596789,1759249842700,-500.0,0.00019178,2]
[388596791,1759249842709,-814.13,0.00019178,2]
[388596792,1759249842718,-500.0,0.00019178,2]
[388596794,1759249842728,-500.0,0.00019178,2]
[388596795,1759249842737,-500.0,0.00019178,2]
[388596796,1759249842747,-500.0,0.00019178,2]
[388596797,1759249842757,-641.79902463,0.00019178,2]
[388596798,1759249842766,-797.55017,0.00019178,2]
[388596799,1759249842777,-1994.1680043,0.00019178,2]
[388596800,1759249842787,-675.279098,0.00019178,2]
[388596801,1759249842797,-500.0,0.00019178,2]
[388596802,1759249842807,-742.51,0.00019178,2]
[388596803,1759249842817,-500.0,0.00019178,2]
[388596804,1759249842825,-500.0,0.00019178,2]
[388596805,1759249842836,-843.81,0.00019178,2]
[388596806,1759249842846,-500.0,0.00019178,2]
[388596807,1759249842859,-500.0,0.00019178,2]
[388596808,1759249842869,-854.016184,0.00019178,2]
[388596809,1759249842881,-799.49,0.00019178,2]
[388596810,1759249842891,-500.0,0.00019178,2]
[388596811,1759249842901,-202.971095,0.00019178,2]
[388596812,1759249842915,-500.0,0.00019178,2]
[388596814,1759249842927,-336.45141869,0.00019178,2]
[388596815,1759249842938,-500.0,0.00019178,2]
[388596816,1759249842963,-300.0,0.00019178,2]
[388596817,1759249842972,-217.78927354,0.00019178,2]
[388596818,1759249842987,-469.22086321,0.00019178,2]
[388596819,1759249842997,-473.84094752,0.00019178,2]
[388596820,1759249843006,-500.0,0.00019178,2]
[388596821,1759249843015,-500.0,0.00019178,2]
[388596822,1759249843024,-168.819776,0.00019178,2]
[388596823,1759249843034,-1170.93,0.00019178,2]
[388596824,1759249843043,-195.43829882,0.00019178,2]
[388596825,1759249843052,-2360.31,0.00019178,2]
[388596826,1759249843061,-500.0,0.00019178,2]
[388596827,1759249843071,-500.0,0.00019178,2]
[388596828,1759249843080,-500.0,0.00019178,2]
[388596829,1759249843090,-500.0,0.00019178,2]
[388596830,1759249843099,-500.0,0.00019178,2]
[388596831,1759249843108,-500.0,0.00019178,2]
[388596832,1759249843118,-500.0,0.00019178,2]
[388596833,1759249843128,-943.27,0.00019178,2]
[388596834,1759249843137,-500.0,0.00019178,2]
[388596835,1759249843147,-500.0,0.00019178,2]
[388596836,1759249843157,-214.30875357,0.00019178,2]
[388596837,1759249843166,-500.0,0.00019178,2]
[388596838,1759249843176,-500.0,0.00019178,2]
[388596839,1759249843185,-500.0,0.00019178,2]
[388596840,1759249843199,-500.0,0.00019178,2]
[388596841,1759249843210,-500.0,0.00019178,2]
[388596842,1759249843220,-500.0,0.00019178,2]
[388596843,1759249843229,-500.0,0.00019178,2]
[388596844,1759249843238,-1179.81,0.00019178,2]
[388596845,1759249843248,-500.0,0.00019178,2]
[388596846,1759249843257,-500.0,0.00019178,2]
[388596847,1759249843267,-500.0,0.00019178,2]
[388596848,1759249843276,-500.0,0.00019178,2]
[388596849,1759249843285,-500.0,0.00019178,2]
[388596850,1759249843294,-170.803238,0.00019178,2]
[388596851,1759249843303,-456.33422728,0.00019178,2]
[388596852,1759249843313,-500.0,0.00019178,2]
[388596853,1759249843323,-500.0,0.00019178,2]
[388596854,1759249843332,-500.0,0.00019178,2]
[388596855,1759249843341,-500.0,0.00019178,2]
[388596856,1759249843350,-500.0,0.00019178,2]
[388596857,1759249843359,-500.0,0.00019178,2]
[388596858,1759249843369,-500.0,0.00019178,2]
[388596859,1759249843378,-1888.18,0.00019178,2]
[388596860,1759249843387,-500.0,0.00019178,2]
[388596861,1759249843396,-500.0,0.00019178,2]
[388596862,1759249843405,-500.0,0.00019178,2]
[388596863,1759249843415,-972.28,0.00019178,2]
[388596864,1759249843424,-537.47,0.00019178,2]
[388596865,1759249843434,-500.0,0.00019178,2]
[388596866,1759249843443,-500.0,0.00019178,2]
[388596867,1759249843454,-500.0,0.00019178,2]
[388596869,1759249843463,-280.18480035,0.00019178,2]
[388596871,1759249843472,-1619.02,0.00019178,2]
[388596872,1759249843481,-500.0,0.00019178,2]
[388596874,1759249843490,-1104.78,0.00019178,2]
[388596875,1759249843499,-812.32,0.00019178,2]
[388596876,1759249843508,-342.23480693,0.00019178,2]
[388596877,1759249843518,-833.79,0.00019178,2]
[388596878,1759249843526,-500.0,0.00019178,2]
[388596879,1759249843535,-759.14,0.00019178,2]
[388596880,1759249843545,-500.0,0.00019178,2]
[388596881,1759249843554,-500.0,0.00019178,2]
[388596882,1759249843563,-1095.94,0.00019178,2]
[388596883,1759249843573,-500.0,0.00019178,2]
[388596884,1759249843582,-500.0,0.00019178,2]
[388596885,1759249843591,-664.625143,0.00019178,2]
[388596886,1759249843601,-500.0,0.00019178,2]
[388596887,1759249843610,-500.0,0.00019178,2]
[388596888,1759249843620,-500.0,0.00019178,2]
[388596889,1759249843630,-660.83,0.00019178,2]
[388596890,1759249843639,-500.0,0.00019178,2]
[388596891,1759249843649,-500.0,0.00019178,2]
[388596892,1759249843658,-500.0,0.00019178,2]
[388596893,1759249843668,-500.0,0.00019178,2]
[388596894,1759249843678,-500.0,0.00019178,2]
[388596895,1759249843687,-500.0,0.00019178,2]
[388596896,1759249843696,-500.0,0.00019178,2]
[388596897,1759249843706,-586.91042877,0.00019178,2]
[388596898,1759249843716,-1528.99,0.00019178,2]
[388596899,1759249843725,-500.0,0.00019178,2]
[388596900,1759249843734,-500.0,0.00019178,2]
[388596901,1759249843743,-500.0,0.00019178,2]
[388596902,1759249843752,-1592.76,0.00019178,2]
[388596903,1759249843762,-500.0,0.00019178,2]
[388596904,1759249843772,-2307.77,0.00019178,2]
[388596905,1759249843781,-1285.84,0.00019178,2]
[388596906,1759249843790,-500.0,0.00019178,2]
[388596907,1759249843799,-500.0,0.00019178,2]
[388596908,1759249843808,-500.0,0.00019178,2]
[388596909,1759249843818,-500.0,0.00019178,2]
[388596910,1759249843827,-500.0,0.00019178,2]
[388596911,1759249843837,-1106.31,0.00019178,2]
[388596912,1759249843846,-500.0,0.00019178,2]
[388596913,1759249843855,-500.0,0.00019178,2]
[388596914,1759249843865,-1429.35,0.00019178,2]
[388596915,1759249843879,-965.54,0.00019178,2]
[388596916,1759249843888,-516.66,0.00019178,2]
[388596917,1759249843898,-500.0,0.00019178,2]
[388596918,1759249843908,-500.0,0.00019178,2]
[388596919,1759249843919,-1609.04,0.00019178,2]
[388596920,1759249843929,-500.0,0.00019178,2]
[388596921,1759249843939,-500.0,0.00019178,2]
[388596922,1759249843949,-500.0,0.00019178,2]
[388596923,1759249843958,-1093.76,0.00019178,2]
[388596924,1759249843967,-500.0,0.00019178,2]
[388596925,1759249843976,-500.0,0.00019178,2]
[388596926,1759249843986,-500.0,0.00019178,2]
[388596927,1759249843996,-500.0,0.00019178,2]
[388596928,1759249844006,-1111.51,0.00019178,2]
[388596929,1759249844016,-729.9,0.00019178,2]
[388596930,1759249844025,-500.0,0.00019178,2]
[388596931,1759249844034,-500.0,0.00019178,2]
[388596932,1759249844044,-500.0,0.00019178,2]
[388596933,1759249844053,-551.27,0.00019178,2]
[388596934,1759249844062,-722.99,0.00019178,2]
[388596935,1759249844072,-722.99,0.00019178,2]
[388596936,1759249844080,-692.86,0.00019178,2]
[388596937,1759249844089,-692.86,0.00019178,2]
[388596938,1759249844098,-815.97,0.00019178,2]
[388596939,1759249844107,-692.86,0.00019178,2]
[388596940,1759249844116,-692.86,0.00019178,2]
[388596941,1759249844125,-500.0,0.00019178,2]
[388596942,1759249844134,-714.93,0.00019178,2]
[388596943,1759249844143,-553.58,0.00019178,2]
[388596944,1759249844152,-500.0,0.00019178,2]
[388596945,1759249844162,-453.28364622,0.00019178,2]
[388596946,1759249844172,-500.0,0.00019178,2]
[388596947,1759249844181,-500.0,0.00019178,2]
[388596948,1759249844190,-500.0,0.00019178,2]
[388596949,1759249844199,-500.0,0.00019178,2]
[388596950,1759249844209,-687.97,0.00019178,2]
[388596951,1759249844219,-500.0,0.00019178,2]
[388596952,1759249844228,-500.0,0.00019178,2]
[388596953,1759249844238,-500.0,0.00019178,2]
[388596954,1759249844247,-500.0,0.00019178,2]
[388596955,1759249844256,-936.18,0.00019178,2]
[388596956,1759249844265,-3030.1,0.00019178,2]
[388596957,1759249844274,-500.0,0.00019178,2]
[388596958,1759249844284,-512.83,0.00019178,2]
[388596959,1759249844293,-500.0,0.00019178,2]
[388596960,1759249844303,-627.92,0.00019178,2]
[388596961,1759249844312,-500.0,0.00019178,2]
[388596962,1759249844322,-500.0,0.00019178,2]
[388596963,1759249844331,-500.0,0.00019178,2]
[388596964,1759249844340,-521.04,0.00019178,2]
[388596965,1759249844350,-767.75,0.00019178,2]
[388596966,1759249844360,-500.0,0.00019178,2]
[388596967,1759249844370,-500.0,0.00019178,2]
[388596968,1759249844379,-2791.29,0.00019178,2]
[388596969,1759249844388,-500.0,0.00019178,2]
[388596970,1759249844399,-1591.93,0.00019178,2]
[388596971,1759249844408,-500.0,0.00019178,2]
[388596972,1759249844418,-500.0,0.00019178,2]
[388596973,1759249844428,-1679.49,0.00019178,2]
[388596974,1759249844437,-500.0,0.00019178,2]
[388596975,1759249844447,-607.38,0.00019178,2]
[388596976,1759249844456,-500.0,0.00019178,2]
[388596977,1759249844466,-500.0,0.00019178,2]
[388596978,1759249844476,-500.0,0.00019178,2]
[388596979,1759249844485,-500.0,0.00019178,2]
[388596980,1759249844495,-500.0,0.00019178,2]
[388596981,1759249844504,-500.0,0.00019178,2]
[388596982,1759249844513,-500.0,0.00019178,2]
[388596983,1759249844522,-2077.95,0.00019178,2]
[388596984,1759249844531,-846.51,0.00019178,2]
[388596985,1759249844541,-1370.24,0.00019178,2]
[388596986,1759249844549,-1134.21,0.00019178,2]
[388596987,1759249844559,-400.25316657,0.00019178,2]
[388596988,1759249844568,-500.0,0.00019178,2]
[388596989,1759249844577,-500.0,0.00019178,2]
[388596990,1759249844586,-500.0,0.00019178,2]
[388596991,1759249844596,-870.8,0.00019178,2]
[388596992,1759249844605,-500.0,0.00019178,2]
[388596993,1759249844615,-735.52,0.00019178,2]
[388596994,1759249844623,-500.0,0.00019178,2]
[388596995,1759249844632,-796.33,0.00019178,2]
[388596996,1759249844642,-795.75,0.00019178,2]
[388596997,1759249844651,-500.0,0.00019178,2]
[388596998,1759249844660,-500.0,0.00019178,2]
[388596999,1759249844669,-500.0,0.00019178,2]
[388597000,1759249844679,-2380.34,0.00019178,2]
[388597001,1759249844688,-500.0,0.00019178,2]
[388597002,1759249844697,-500.0,0.00019178,2]
[388597003,1759249844706,-530.38,0.00019178,2]
[388597004,1759249844715,-500.0,0.00019178,2]
[388597005,1759249844724,-1023.84,0.00019178,2]
[388597006,1759249844733,-1547.98,0.00019178,2]
[388597007,1759249844742,-753.91,0.00019178,2]
[388597008,1759249844751,-500.0,0.00019178,2]
[388597009,1759249844761,-500.0,0.00019178,2]
[388597010,1759249844770,-500.0,0.00019178,2]
[388597011,1759249844780,-500.0,0.00019178,2]
[388597012,1759249844791,-500.0,0.00019178,2]
[388597013,1759249844800,-500.0,0.00019178,2]
[388597014,1759249844809,-500.0,0.00019178,2]
[388597015,1759249844819,-500.0,0.00019178,2]
[388597016,1759249844828,-500.0,0.00019178,2]
[388597017,1759249844837,-500.0,0.00019178,2]
[388597018,1759249844846,-356.55556513,0.00019178,2]
[388597019,1759249844855,-1676.78,0.00019178,2]
[388597020,1759249844864,-1606.91,0.00019178,2]
[388597021,1759249844876,-500.0,0.00019178,2]
[388597022,1759249844887,-1541.83,0.00019178,2]
[388597023,1759249844896,-500.0,0.00019178,2]
[388597024,1759249844905,-500.0,0.00019178,2]
[388597025,1759249844915,-500.0,0.00019178,2]
[388597026,1759249844926,-500.0,0.00019178,2]
[388597027,1759249844936,-500.0,0.00019178,2]
[388597028,1759249844946,-429.90161943,0.00019178,2]
[388597029,1759249844955,-500.0,0.00019178,2]
[388597030,1759249844965,-500.0,0.00019178,2]
[388597031,1759249844974,-2367.69,0.00019178,2]
[388597032,1759249844983,-500.0,0.00019178,2]
[388597033,1759249844992,-500.0,0.00019178,2]
[388597034,1759249845002,-500.0,0.00019178,2]
[388597035,1759249845015,-761.45,0.00019178,2]
[388597036,1759249845024,-500.0,0.00019178,2]
[388597037,1759249845033,-2198.01,0.00019178,2]
[388597038,1759249845042,-500.0,0.00019178,2]
[388597039,1759249845052,-607.24,0.00019178,2]
[388597040,1759249845063,-500.0,0.00019178,2]
[388597041,1759249845072,-1448.17,0.00019178,2]
[388597042,1759249845082,-500.0,0.00019178,2]
[388597043,1759249845091,-1249.79,0.00019178,2]
[388597044,1759249845100,-500.0,0.00019178,2]
[388597045,1759249845110,-906.17,0.00019178,2]
[388597046,1759249845119,-500.0,0.00019178,2]
[388597047,1759249845405,-643.48,0.00019178,2]
[388597048,1759249845415,-500.0,0.00019178,2]
[388597049,1759249845425,-586.9,0.00019178,2]
[388597050,1759249845434,-500.0,0.00019178,2]
[388597051,1759249845443,-500.0,0.00019178,2]
[388597052,1759249845453,-1958.91,0.00019178,2]
[388597053,1759249845462,-500.0,0.00019178,2]
[388597054,1759249845472,-2569.61,0.00019178,2]
[388597055,1759249845482,-500.0,0.00019178,2]
[388597056,1759249845491,-500.0,0.00019178,2]
[388597057,1759249845500,-500.0,0.00019178,2]
[388597058,1759249845510,-856.58,0.00019178,2]
[388597059,1759249845520,-500.0,0.00019178,2]
[388597060,1759249845529,-500.0,0.00019178,2]
[388597061,1759249845539,-1984.69,0.00019178,2]
[388597062,1759249845548,-500.0,0.00019178,2]
[388597063,1759249845558,-884.13,0.00019178,2]
[388597064,1759249845567,-500.0,0.00019178,2]
[388597065,1759249845577,-632.95,0.00019178,2]
[388597066,1759249845586,-500.0,0.00019178,2]
[388597067,1759249845595,-556.34,0.00019178,2]
[388597068,1759249845605,-500.0,0.00019178,2]
[388597069,1759249845615,-500.0,0.00019178,2]
[388597070,1759249845624,-1106.09,0.00019178,2]
[388597071,1759249845634,-500.0,0.00019178,2]
[388597072,1759249845643,-1742.08,0.00019178,2]
[388597073,1759249845652,-629.15,0.00019178,2]
[388597074,1759249845662,-491.93667199,0.00019178,2]
[388597075,1759249845671,-500.0,0.00019178,2]
[388597076,1759249845682,-1352.98,0.00019178,2]
[388597077,1759249845692,-945.64,0.00019178,2]
[388597078,1759249845701,-500.0,0.00019178,2]
[388597079,1759249845711,-3498.91,0.00019178,2]
[388597080,1759249845721,-947.96,0.00019178,2]
[388597081,1759249845730,-500.0,0.00019178,2]
[388597082,1759249845740,-554.59,0.00019178,2]
[388597083,1759249845749,-500.0,0.00019178,2]
[388597084,1759249845759,-2774.55,0.00019178,2]
[388597085,1759249845768,-500.0,0.00019178,2]
[388597086,1759249845778,-500.0,0.00019178,2]
[388597087,1759249845787,-2511.83,0.00019178,2]
[388597088,1759249845797,-500.0,0.00019178,2]
[388597089,1759249845807,-1187.47,0.00019178,2]
[388597090,1759249845817,-500.0,0.00019178,2]
[388597091,1759249845827,-500.0,0.00019178,2]
[388597092,1759249845836,-519.03,0.00019178,2]
[388597093,1759249845846,-2830.66,0.00019178,2]
[388597094,1759249845855,-500.0,0.00019178,2]
[388597095,1759249845866,-500.0,0.00019178,2]
[388597096,1759249845880,-500.0,0.00019178,2]
[388597097,1759249845890,-593.67,0.00019178,2]
[388597098,1759249845900,-500.0,0.00019178,2]
[388597099,1759249845910,-500.0,0.00019178,2]
[388597100,1759249845921,-500.0,0.00019178,2]
[388597101,1759249845931,-500.0,0.00019178,2]
[388597102,1759249845940,-500.0,0.00019178,2]
[388597103,1759249845951,-500.0,0.00019178,2]
[388597104,1759249845961,-500.0,0.00019178,2]
[388597105,1759249845970,-2587.67,0.00019178,2]
[388597106,1759249845979,-500.0,0.00019178,2]
[388597107,1759249845989,-1073.45,0.00019178,2]
[388597108,1759249845999,-500.0,0.00019178,2]
[388597109,1759249846009,-485.4165663,0.00019178,2]
[388597110,1759249846018,-788.06,0.00019178,2]
[388597111,1759249846028,-2775.24,0.00019178,2]
[388597112,1759249846037,-500.0,0.00019178,2]
[388597113,1759249846047,-520.92,0.00019178,2]
[388597114,1759249846056,-500.0,0.00019178,2]
[388597115,1759249846065,-1056.08,0.00019178,2]
[388597116,1759249846074,-500.0,0.00019178,2]
[388597117,1759249846084,-500.0,0.00019178,2]
[388597118,1759249846093,-500.0,0.00019178,2]
[388597119,1759249846103,-500.0,0.00019178,2]
[388597120,1759249846112,-562.08,0.00019178,2]
[388597121,1759249846121,-3271.8,0.00019178,2]
[388597122,1759249846131,-500.0,0.00019178,2]
[388597123,1759249846140,-500.0,0.00019178,2]
[388597124,1759249846150,-500.0,0.00019178,2]
[388597125,1759249846159,-500.0,0.00019178,2]
[388597126,1759249846170,-500.0,0.00019178,2]
[388597127,1759249846180,-1649.99,0.00019178,2]
[388597128,1759249846190,-508.48956528,0.00019178,2]
[388597129,1759249846199,-500.0,0.00019178,2]
[388597130,1759249846209,-500.0,0.00019178,2]
[388597131,1759249846219,-500.0,0.00019178,2]
[388597132,1759249846228,-500.0,0.00019178,2]
[388597133,1759249846238,-500.0,0.00019178,2]
[388597134,1759249846247,-2413.64,0.00019178,2]
[388597135,1759249846257,-500.0,0.00019178,2]
[388597136,1759249846267,-500.0,0.00019178,2]
[388597137,1759249846276,-500.0,0.00019178,2]
[388597138,1759249846286,-500.0,0.00019178,2]
[388597139,1759249846295,-865.04,0.00019178,2]
[388597140,1759249846305,-732.06,0.00019178,2]
[388597141,1759249846314,-1015.28,0.00019178,2]
[388597142,1759249846324,-1096.95,0.00019178,2]
[388597143,1759249846334,-500.0,0.00019178,2]
[388597144,1759249846343,-2531.82,0.00019178,2]
[388597145,1759249846352,-494.29741488,0.00019178,2]
[388597146,1759249846361,-1328.15,0.00019178,2]
[388597147,1759249846371,-500.0,0.00019178,2]
[388597148,1759249846380,-500.0,0.00019178,2]
[388597149,1759249846389,-578.82,0.00019178,2]
[388597150,1759249846399,-500.0,0.00019178,2]
[388597151,1759249846408,-500.0,0.00019178,2]
[388597152,1759249846419,-500.0,0.00019178,2]
[388597153,1759249846429,-1491.42,0.00019178,2]
[388597154,1759249846441,-500.0,0.00019178,2]
[388597155,1759249846450,-500.0,0.00019178,2]
[388597156,1759249846460,-1030.5,0.00019178,2]
[388597157,1759249846469,-3093.56,0.00019178,2]
[388597158,1759249846479,-695.45,0.00019178,2]
[388597159,1759249846489,-500.0,0.00019178,2]
[388597160,1759249846498,-514.24,0.00019178,2]
[388597161,1759249846508,-500.0,0.00019178,2]
[388597162,1759249846517,-500.0,0.00019178,2]
[388597164,1759249846527,-500.0,0.00019178,2]
[388597166,1759249846536,-500.0,0.00019178,2]
[388597167,1759249846546,-305.25104859,0.00019178,2]
[388597168,1759249846556,-500.0,0.00019178,2]
[388597169,1759249846565,-500.0,0.00019178,2]
[388597170,1759249846575,-994.38,0.00019178,2]
[388597171,1759249846585,-500.0,0.00019178,2]
[388597172,1759249846595,-500.0,0.00019178,2]
[388597173,1759249846604,-297.22671453,0.00019178,2]
[388597174,1759249846614,-848.58,0.00019178,2]
[388597175,1759249846623,-500.0,0.00019178,2]
[388597176,1759249846633,-4540.63,0.00019178,2]
[388597177,1759249846642,-500.0,0.00019178,2]
[388597178,1759249846652,-678.24,0.00019178,2]
[388597179,1759249846662,-1847.64,0.00019178,2]
[388597180,1759249846672,-775.23,0.00019178,2]
[388597181,1759249846682,-500.0,0.00019178,2]
[388597182,1759249846692,-500.0,0.00019178,2]
[388597183,1759249846701,-918.34,0.00019178,2]
[388597184,1759249846711,-1517.91,0.00019178,2]
[388597185,1759249846720,-500.0,0.00019178,2]
[388597186,1759249846730,-500.0,0.00019178,2]
[388597187,1759249846740,-500.0,0.00019178,2]
[388597188,1759249846750,-500.0,0.00019178,2]
[388597189,1759249846760,-500.0,0.00019178,2]
[388597190,1759249846769,-1215.69,0.00019178,2]
[388597191,1759249846779,-500.0,0.00019178,2]
[388597192,1759249846789,-500.0,0.00019178,2]
[388597193,1759249846798,-500.0,0.00019178,2]
[388597194,1759249846808,-540.75,0.00019178,2]
[388597195,1759249846817,-500.0,0.00019178,2]
[388597196,1759249846826,-1917.21,0.00019178,2]
[388597197,1759249846836,-500.0,0.00019178,2]
[388597198,1759249846848,-578.37287863,0.00019178,2]
[388597199,1759249846857,-500.0,0.00019178,2]
[388597200,1759249846867,-313.13431383,0.00019178,2]
[388597201,1759249846880,-500.0,0.00019178,2]
[388597202,1759249846889,-938.24,0.00019178,2]
[388597203,1759249846899,-500.0,0.00019178,2]
[388597204,1759249846908,-978.98,0.00019178,2]
[388597205,1759249846919,-500.0,0.00019178,2]
[388597206,1759249846928,-1005.4,0.00019178,2]
[388597207,1759249846937,-500.0,0.00019178,2]
[388597208,1759249846948,-679.04,0.00019178,2]
[388597209,1759249846957,-1739.75,0.00019178,2]
[388597210,1759249846966,-500.0,0.00019178,2]
[388597211,1759249846975,-500.0,0.00019178,2]
[388597212,1759249846985,-4691.52,0.00019178,2]
[388597213,1759249846994,-500.0,0.00019178,2]
[388597214,1759249847004,-500.0,0.00019178,2]
[388597215,1759249847013,-500.0,0.00019178,2]
[388597216,1759249847023,-500.0,0.00019178,2]
[388597217,1759249847032,-500.0,0.00019178,2]
[388597218,1759249847050,-500.0,0.00019178,2]
[388597219,1759249847059,-500.0,0.00019178,2]
[388597220,1759249847068,-500.0,0.00019178,2]
[388597221,1759249847077,-500.0,0.00019178,2]
[388597222,1759249847087,-500.0,0.00019178,2]
[388597223,1759249847096,-1598.83,0.00019178,2]
[388597224,1759249847106,-1491.16,0.00019178,2]
[388597225,1759249847115,-904.66,0.00019178,2]
[388597226,1759249847125,-4560.09,0.00019178,2]
[388597227,1759249847135,-1198.14,0.00019178,2]
[388597228,1759249847144,-500.0,0.00019178,2]
[388597229,1759249847153,-500.0,0.00019178,2]
[388597230,1759249847163,-500.0,0.00019178,2]
[388597231,1759249847172,-737.28,0.00019178,2]
[388597232,1759249847183,-2355.43,0.00019178,2]
[388597233,1759249847193,-500.0,0.00019178,2]
[388597234,1759249847202,-500.0,0.00019178,2]
[388597235,1759249847212,-500.0,0.00019178,2]
[388597236,1759249847222,-500.0,0.00019178,2]
[388597237,1759249847231,-500.0,0.00019178,2]
[388597238,1759249847240,-500.0,0.00019178,2]
[388597239,1759249847250,-500.0,0.00019178,2]
[388597240,1759249847259,-432.78182305,0.00019178,2]
[388597241,1759249847269,-500.0,0.00019178,2]
[388597242,1759249847278,-764.93,0.00019178,2]
[388597243,1759249847288,-500.0,0.00019178,2]
[388597244,1759249847298,-685.35,0.00019178,2]
[388597245,1759249847307,-702.55,0.00019178,2]
[388597246,1759249847316,-1003.38,0.00019178,2]
[388597247,1759249847326,-500.0,0.00019178,2]
[388597248,1759249847335,-847.95,0.00019178,2]
[388597249,1759249847346,-4540.99,0.00019178,2]
[388597250,1759249847355,-500.0,0.00019178,2]
[388597251,1759249847364,-500.0,0.00019178,2]
[388597252,1759249847373,-500.0,0.00019178,2]
[388597253,1759249847383,-3006.36,0.00019178,2]
[388597254,1759249847393,-3831.64,0.00019178,2]
[388597255,1759249847403,-924.71,0.00019178,2]
[388597256,1759249847413,-863.68,0.00019178,2]
[388597257,1759249847426,-500.0,0.00019178,2]
[388597258,1759249847438,-2014.92,0.00019178,2]
[388597259,1759249847452,-500.0,0.00019178,2]
[388597260,1759249847461,-819.66,0.00019178,2]